Workbook

Sheet tabella
A1: Comune | B1: Preventivo a.s.2025/2026 (D.D. 1710 del 22.09.2025 e DD 2493 del 29/12/2025) | C1: 1° Acconto (pari al 40%) disposto con D.D. 1710 del 22.09.2025 e DD 2493 del 29/12/2025 | D1: Mandati Provincia | E1: Numero alunni aggiornato (a seguito rettifiche e integrazioni) | F1: Numero alunni a seguito di rendicontazione | G1: Importo rendicontato a.s. 2025-2026 | H1: Saldo da erogare as 2025-2026
A2: Comune di Arezzo | B2: 62,310.00 | C2: 24,924.00 | D2: in corso di compensazione (non erogato) | E2: 15 | F2: 20 | G2: 44,580.40 | H2: =G2 -> 44,580.40
A3: Comune di Civitella in Val Di Chiana | B3: 18,216.00 | C3: 7,286.40 | D3: 4125/2025 del 23.09.2025 e 4127/2025 del 23.09.2025 | E3: 1 | F3: 1 | G3: 13,200.00 | H3: =G3-C3 -> 5,913.60
A4: Comune di Montevarchi | B4: 105,547.20 | C4: 42,218.88 | D4: 4128/2025 del 23.09.2025 | E4: 18 | F4: 18 | G4: 93,894.82 | H4: =G4-C4 -> 51,675.94
A5: Comune di Castelfranco Pian di Scò | B5: 4,995.00 | C5: 1,998.00 | D5: 4129/2025 del 23.09.2025 | E5: 2 | F5: 2 | G5: 2,002.62 | H5: 4.62
A6: Comune di Castiglion Fiorentino | B6: 12,600.00 | C6: 5,040.00 | D6: 4130/2025 del 23.09.2025 | E6: 1 | F6: 1 | G6: 12,600.00 | H6: 7,560.00
A7: Comune di Cavriglia | B7: 23,349.06 | C7: 9,339.62 | D7: 4132/2025 del 23.09.2025 | E7: 3 | F7: 3 | G7: 23,164.11 | H7: 13,824.49
A8: Comune di Cortona | B8: 26,031.64 | C8: 10,412.66 | D8: 4133/2025 del 23.09.2025 | E8: 5 | F8: 5 | G8: 21,623.91 | H8: 11,211.25
A9: Comune di Lucignano | B9: 13,200.00 | C9: 5,280.00 | D9: 4140/2025 del 23.09.2025 | E9: 1 | F9: 1 | G9: 12,750.00 | H9: 7,470.00
A10: Comune di Marciano della Chiana | B10: 27,303.52 | C10: 10,921.41 | D10: 4141/2025 del 23.09.2025 | E10: 4 | F10: 4 | G10: 20,919.32 | H10: 9,997.91
A11: Comune di Sansepolcro | B11: 4,990.00 | C11: 1,996.00 | D11: 4142/2025 del 23.09.2025 | E11: 1 | F11: 1 | G11: 4,990.00 | H11: 2,994.00
A12: Comune di Bucine | B12: 10,229.76 | C12: 4,091.90 | D12: 4143/2025 del 23.09.2025 | E12: 1 | F12: 2 | G12: 14,504.96 | H12: 10,413.06
A13: Comune di San Giovanni Valdarno | B13: 2,000.00 | C13: 800.00 | D13: 4144/2025 del 23.09.2025 | E13: 1 | F13: 1 | G13: 2,000.00 | H13: 1,200.00
A14: Comune di Subbiano | B14: 11,760.00 | C14: 4,704.00 | D14: 4145/2025 del 23.09.2025 | E14: 1 | F14: 1 | G14: 9,514.00 | H14: 4,810.00
A15: Comune di Bibbiena | B15: 7,987.97 | C15: 3,195.19 | D15: 4146/2025 del 23.09.2025 | E15: 4 | F15: 3 | G15: 6,755.45 | H15: 3,560.26
A16: Comune di Laterina Pergine Valdarno | B16: 22,042.19 | C16: 8,816.88 | D16: 4147/2025 del 23.09.2025 | E16: 2 | F16: 2 | G16: 17,922.85 | H16: 9,105.97
A17: Comune di Loro Ciuffenna | B17: 20,500.00 | C17: 8,200.00 | D17: 4148/2025 del 23.09.2025 | E17: 2 | F17: 2 | G17: 19,275.00 | H17: 11,075.00
A18: Unione dei Comuni Montani Casentino | B18: 15,304.30 | C18: =B18*0.4 -> 6,121.72 | D18: 4149/2025 del 23.09.2025 (€ 5.428,40) 27/2026 del 7.01.2026 (€ 693,32) | E18: 2 | F18: 3 | G18: 10,364.66 | H18: =G18-C18 -> 4,242.94
A19: Comune di Terranuova Bracciolini | B19: 68,568.32 | C19: 27,427.33 | D19: 4150/2025 del 23.09.2025 | E19: 7 | F19: 7 | G19: 61,796.83 | H19: 34,369.50
A20: Asl Sud Est (Comune di Capolona) | B20: 13,705.12 | C20: 5,482.05 | D20: 4131/2025 del 23.09.2025 | E20: 1 | F20: 1 | G20: 12,520.54 | H20: 7,038.49
A21: TOTALE | B21: =SUM(B2:B20) -> 470,640.08 | C21: =SUM(C2:C20) -> 188,256.04 | E21: =SUM(E2:E20) -> 72 | F21: =SUM(F2:F20) -> 78 | G21: =SUM(G2:G20) -> 404,379.47 | H21: =SUM(H2:H20) -> 241,047.43

Sheet calcoli
B2: 187,562.72 | C2: acconto
B3: 24,924.00 | C3: AR
B5: =B2-B3 -> 162,638.72 | D5: mandati
B6: 26,799.85 | D6: 657/26 | J6: 26,799.85
B7: 101,817.68 | D7: 667/26 | J7: 101,817.68
B8: 7,786.33 | D8: 1503/25 | J8: 7,786.33
B9: 17,137.67 | D9: 874/25 s. 1 | J9: 17,137.67
B10: 1,039.98 | D10: 673/26 | J10: 1,039.98
B11: 151,686.55 | D11: 672/26 | E11: q.p. (senza rimodulazione) | J11: 172,395.77
B12: =SUM(B5:B11) -> 468,906.78
J13: =SUM(J6:J12) -> 326,977.28
B14: 254,544.21
B15: 101,817.68
B16: 1,733.30
B17: =B14-B15-B16 -> 150,993.23 | E17: 172395.77
E18: =B11 -> 151,686.55
B19: 275,946.75 | E19: =E17-E18 -> 20,709.22
B20: 151,686.55 | D20: 672/26 | E20: =B24-E19 -> 0.00
B21: =B15 -> 101,817.68 | D21: 667/26
B22: 693.32 | D22: 1849/25 s. 1
B23: 1,039.98 | D23: 673/26
B24: 20,709.22 | D24: 672/26
